[Event "Titled Tuesday Blitz January 18 2022"]
[White "Ezat, Mohamed"]
[Black "Reprintsev, Alexander"]
[WhiteFideId "10600906"]
[BlackFideId "14100541"]
[WhiteElo "2386"]
[BlackElo "2126"]
[Result "0-1"]
[Round "05"]
[TimeControl "180+1"]
[Date "2022.01.18"]
[WhiteClock "0:00:07"]
[BlackClock "0:00:07"]

1. d4 {[%clk 0:02:12]}  d5 {[%clk 0:02:58]} 2. c4 {[%clk 0:02:12]}  e5 {[%clk 0:02:58]} 3. dxe5 {[%clk 0:02:10]}  d4 {[%clk 0:02:58]} 4. Nf3 {[%clk 0:02:10]}  Nc6 {[%clk 0:02:58]} 5. g3 {[%clk 0:02:05]}  Nge7 {[%clk 0:02:58]} 6. Bg2 {[%clk 0:02:04]}  Ng6 {[%clk 0:02:58]} 7. O-O {[%clk 0:02:04]}  Ngxe5 {[%clk 0:02:58]} 8. Nxe5 {[%clk 0:02:04]}  Nxe5 {[%clk 0:02:58]} 9. Nd2 {[%clk 0:01:58]}  Be7 {[%clk 0:02:32]} 10. Nb3 {[%clk 0:01:53]}  Nxc4 {[%clk 0:02:23]} 11. Nxd4 {[%clk 0:01:53]}  O-O {[%clk 0:02:21]} 12. e3 {[%clk 0:01:46]}  Bf6 {[%clk 0:02:17]} 13. b3 {[%clk 0:01:44]}  Bxd4 {[%clk 0:02:16]} 14. exd4 {[%clk 0:01:43]}  Nd6 {[%clk 0:02:15]} 15. Bf4 {[%clk 0:01:39]}  c6 {[%clk 0:01:57]} 16. d5 {[%clk 0:01:37]}  c5 {[%clk 0:01:57]} 17. Rc1 {[%clk 0:01:36]}  b6 {[%clk 0:01:57]} 18. Re1 {[%clk 0:01:30]}  Bf5 {[%clk 0:01:46]} 19. h4 {[%clk 0:01:21]}  h6 {[%clk 0:01:45]} 20. Re5 {[%clk 0:01:15]}  Bh7 {[%clk 0:01:42]} 21. Qe2 {[%clk 0:01:13]}  Nf5 {[%clk 0:01:38]} 22. d6 {[%clk 0:01:08]}  Nd4 {[%clk 0:01:34]} 23. Qa6 {[%clk 0:01:04]}  Rb8 {[%clk 0:01:01]} 24. Qxa7 {[%clk 0:01:04]}  Qf6 {[%clk 0:00:27]} 25. d7 {[%clk 0:00:47]}  Rbd8 {[%clk 0:00:26]} 26. Rce1 {[%clk 0:00:41]}  Nc6 {[%clk 0:00:23]} 27. Bxc6 {[%clk 0:00:30]}  Qxc6 {[%clk 0:00:24]} 28. Re7 {[%clk 0:00:28]}  Bf5 {[%clk 0:00:23]} 29. f3 {[%clk 0:00:25]}  Rxd7 {[%clk 0:00:20]} 30. Rxd7 {[%clk 0:00:24]}  Bxd7 {[%clk 0:00:20]} 31. Qc7 {[%clk 0:00:21]}  Rc8 {[%clk 0:00:15]} 32. Qxc6 {[%clk 0:00:19]}  Bxc6 {[%clk 0:00:15]} 33. Kf2 {[%clk 0:00:17]}  f6 {[%clk 0:00:16]} 34. Re7 {[%clk 0:00:17]}  b5 {[%clk 0:00:14]} 35. Bd2 {[%clk 0:00:15]}  c4 {[%clk 0:00:13]} 36. bxc4 {[%clk 0:00:15]}  bxc4 {[%clk 0:00:11]} 37. Bc3 {[%clk 0:00:15]}  Rd8 {[%clk 0:00:11]} 38. Re2 {[%clk 0:00:15]}  Rd3 {[%clk 0:00:10]} 39. Re3 {[%clk 0:00:14]}  Rd1 {[%clk 0:00:10]} 40. g4 {[%clk 0:00:13]}  Rc1 {[%clk 0:00:10]} 41. g5 {[%clk 0:00:12]}  Rc2+ {[%clk 0:00:10]} 42. Kg3 {[%clk 0:00:12]}  fxg5 {[%clk 0:00:10]} 43. hxg5 {[%clk 0:00:12]}  hxg5 {[%clk 0:00:11]} 44. Kg4 {[%clk 0:00:13]}  Rxa2 {[%clk 0:00:11]} 45. Kxg5 {[%clk 0:00:12]}  Rg2+ {[%clk 0:00:10]} 46. Kf4 {[%clk 0:00:12]}  Ba4 {[%clk 0:00:09]} 47. Re7 {[%clk 0:00:10]}  Bc2 {[%clk 0:00:08]} 48. Rc7 {[%clk 0:00:09]}  Bd3 {[%clk 0:00:08]} 49. Ke3 {[%clk 0:00:09]}  Kh7 {[%clk 0:00:08]} 50. Kf4 {[%clk 0:00:09]}  Kh6 {[%clk 0:00:09]} 51. Ke3 {[%clk 0:00:09]}  g5 {[%clk 0:00:09]} 52. Rc6+ {[%clk 0:00:09]}  Kh5 {[%clk 0:00:09]} 53. Rc8 {[%clk 0:00:09]}  Re2+ {[%clk 0:00:08]} 54. Kd4 {[%clk 0:00:09]}  Kh4 {[%clk 0:00:08]} 55. Bb4 {[%clk 0:00:07]}  Kg3 {[%clk 0:00:09]} 56. Rg8 {[%clk 0:00:07]}  Kxf3 {[%clk 0:00:07]} 57. Rxg5 {[%clk 0:00:07]}  Re4+ {[%clk 0:00:07]} 58. Kc3 {[%clk 0:00:07]}  Re2 {[%clk 0:00:07]} 59. Bc5 {[%clk 0:00:07]}  Rc2+ {[%clk 0:00:07]} 60. Kd4 {[%clk 0:00:08]}  Kf4 {[%clk 0:00:06]} 61. Rg8 {[%clk 0:00:08]}  Kf5 {[%clk 0:00:07]} 62. Rf8+ {[%clk 0:00:09]}  Ke6 {[%clk 0:00:07]} 63. Re8+ {[%clk 0:00:09]}  Kd7 {[%clk 0:00:08]} 64. Re7+ {[%clk 0:00:10]}  Kc6 {[%clk 0:00:08]} 65. Re6+ {[%clk 0:00:10]}  Kb5 {[%clk 0:00:07]} 66. Rb6+ {[%clk 0:00:10]}  Ka5 {[%clk 0:00:08]} 67. Rb8 {[%clk 0:00:11]}  Re2 {[%clk 0:00:08]} 68. Bb4+ {[%clk 0:00:10]}  Ka4 {[%clk 0:00:07]} 69. Kc3 {[%clk 0:00:10]}  Rc2+ {[%clk 0:00:07]} 70. Kd4 {[%clk 0:00:11]}  Kb3 {[%clk 0:00:07]} 71. Bc3+ {[%clk 0:00:10]}  Ka2 {[%clk 0:00:08]} 72. Ra8+ {[%clk 0:00:09]}  Kb3 {[%clk 0:00:08]} 73. Rb8+ {[%clk 0:00:09]}  Ka4 {[%clk 0:00:08]} 74. Ra8+ {[%clk 0:00:09]}  Kb5 {[%clk 0:00:08]} 75. Ra5+ {[%clk 0:00:09]}  Kc6 {[%clk 0:00:08]} 76. Rh5 {[%clk 0:00:09]}  Kd7 {[%clk 0:00:08]} 77. Rh6 {[%clk 0:00:07]}  Re2 {[%clk 0:00:08]} 78. Rh4 {[%clk 0:00:07]}  Ke6 {[%clk 0:00:07]} 79. Rf4 {[%clk 0:00:08]}  Rg2 {[%clk 0:00:07]} 80. Kc5 {[%clk 0:00:07]}  Rg5+ {[%clk 0:00:07]} 81. Kb4 {[%clk 0:00:07]}  Rg8 {[%clk 0:00:07]} 82. Rf6+ {[%clk 0:00:07]}  Kd5 {[%clk 0:00:06]} 83. Rb6 {[%clk 0:00:08]}  Ke4 {[%clk 0:00:06]} 84. Rb7 {[%clk 0:00:08]}  Kf3 {[%clk 0:00:06]} 85. Re7 {[%clk 0:00:08]}  Kf2 {[%clk 0:00:06]} 86. Bd2 {[%clk 0:00:09]}  Rb8+ {[%clk 0:00:06]} 87. Kc3 {[%clk 0:00:09]}  Kf3 {[%clk 0:00:07]} 88. Kd4 {[%clk 0:00:10]}  Kg4 {[%clk 0:00:07]} 89. Kc3 {[%clk 0:00:10]}  Rb3+ {[%clk 0:00:06]} 90. Kd4 {[%clk 0:00:10]}  Rb2 {[%clk 0:00:06]} 91. Bc3 {[%clk 0:00:08]}  Rc2 {[%clk 0:00:07]} 92. Re1 {[%clk 0:00:06]}  Kf3 {[%clk 0:00:06]} 93. Re8 {[%clk 0:00:07]}  Rc1 {[%clk 0:00:06]} 94. Re3+ {[%clk 0:00:07]}  Kf2 {[%clk 0:00:06]} 95. Re8 {[%clk 0:00:07]}  Kg3 {[%clk 0:00:06]} 96. Rf8 {[%clk 0:00:07]}  Rd1 {[%clk 0:00:06]} 97. Kc5 {[%clk 0:00:06]}  Rb1 {[%clk 0:00:05]} 98. Kd4 {[%clk 0:00:06]}  Kg4 {[%clk 0:00:05]} 99. Kc5 {[%clk 0:00:06]}  Kg5 {[%clk 0:00:05]} 100. Kd4 {[%clk 0:00:06]}  Rb7 {[%clk 0:00:05]} 101. Rf2 {[%clk 0:00:07]}  Rd7+ {[%clk 0:00:05]} 102. Ke3 {[%clk 0:00:07]}  Bg6 {[%clk 0:00:06]} 103. Rg2+ {[%clk 0:00:06]}  Kh6 {[%clk 0:00:06]} 104. Rf2 {[%clk 0:00:07]}  Rd3+ {[%clk 0:00:06]} 105. Kf4 {[%clk 0:00:07]}  Rxc3 {[%clk 0:00:06]} 106. Ke5 {[%clk 0:00:08]}  Kg7 {[%clk 0:00:06]} 107. Ke6 {[%clk 0:00:08]}  Rc1 {[%clk 0:00:06]} 108. Kd5 {[%clk 0:00:08]}  Bd3 {[%clk 0:00:06]} 109. Kd4 {[%clk 0:00:09]}  Kh6 {[%clk 0:00:07]} 110. Rg2 {[%clk 0:00:08]}  Kh5 {[%clk 0:00:07]} 111. Rg8 {[%clk 0:00:09]}  Rf1 {[%clk 0:00:07]} 112. Rg2 {[%clk 0:00:08]}  Kh4 {[%clk 0:00:07]} 113. Kc3 {[%clk 0:00:08]}  Rf3 {[%clk 0:00:07]} 114. Rg7 {[%clk 0:00:08]}  Rg3 {[%clk 0:00:07]} 115. Rf7 {[%clk 0:00:07]}  Bg6+ {[%clk 0:00:07]} 0-1


[Site "https://www.chess.com"]

[Event "Titled Tuesday Blitz January 18 2022"]
[White "FGHSMN"]
[Black "Nozdrachev, Leonid"]
[BlackFideId "24113433"]
[WhiteElo "2742"]
[BlackElo "2124"]
[Result "1-0"]
[Round "05"]
[TimeControl "180+1"]
[Date "2022.01.18"]
[WhiteClock "0:01:09"]
[BlackClock "0:00:01"]

1. b3 {[%clk 0:03:00]}  Nf6 {[%clk 0:02:55]} 2. Bb2 {[%clk 0:02:59]}  g6 {[%clk 0:02:55]} 3. Nf3 {[%clk 0:02:58]}  Bg7 {[%clk 0:02:52]} 4. g3 {[%clk 0:02:59]}  O-O {[%clk 0:02:52]} 5. Bg2 {[%clk 0:02:59]}  d6 {[%clk 0:02:51]} 6. d4 {[%clk 0:02:58]}  e5 {[%clk 0:02:49]} 7. dxe5 {[%clk 0:02:56]}  Ng4 {[%clk 0:02:49]} 8. c4 {[%clk 0:02:46]}  dxe5 {[%clk 0:02:38]} 9. Qxd8 {[%clk 0:02:37]}  Rxd8 {[%clk 0:02:39]} 10. h3 {[%clk 0:02:37]}  e4 {[%clk 0:02:34]} 11. Bxg7 {[%clk 0:02:35]}  exf3 {[%clk 0:02:27]} 12. Bxf3 {[%clk 0:02:36]}  Rd1+ {[%clk 0:01:15]} 13. Kxd1 {[%clk 0:02:32]}  Nxf2+ {[%clk 0:01:16]} 14. Ke1 {[%clk 0:02:31]}  Nxh1 {[%clk 0:01:16]} 15. Be5 {[%clk 0:02:30]}  Nc6 {[%clk 0:01:16]} 16. Bxc7 {[%clk 0:02:13]}  Nd4 {[%clk 0:01:11]} 17. Bxh1 {[%clk 0:02:08]}  Nc2+ {[%clk 0:01:09]} 18. Kd2 {[%clk 0:02:08]}  Nxa1 {[%clk 0:01:08]} 19. Be5 {[%clk 0:01:56]}  Bf5 {[%clk 0:01:00]} 20. e4 {[%clk 0:01:46]}  Rd8+ {[%clk 0:00:51]} 21. Kc1 {[%clk 0:01:45]}  Nxb3+ {[%clk 0:00:26]} 22. axb3 {[%clk 0:01:44]}  Bxh3 {[%clk 0:00:27]} 23. Nc3 {[%clk 0:01:43]}  Rd3 {[%clk 0:00:20]} 24. Kc2 {[%clk 0:01:38]}  Bf1 {[%clk 0:00:18]} 25. Nd5 {[%clk 0:01:34]}  Be2 {[%clk 0:00:11]} 26. Nf4 {[%clk 0:01:19]}  Rd1 {[%clk 0:00:04]} 27. Bg2 {[%clk 0:01:18]}  Bg4 {[%clk 0:00:04]} 28. Bh3 {[%clk 0:01:10]}  Re1 {[%clk 0:00:01]} 29. Bxg4 {[%clk 0:01:09]} 1-0


[Site "https://www.chess.com"]

[Event "Titled Tuesday Blitz January 18 2022"]
[White "Fawzy, Adham"]
[Black "Yoo, Christopher Woojin"]
[WhiteFideId "10613129"]
[BlackFideId "30909694"]
[WhiteElo "2510"]
[BlackElo "2105"]
[Result "1-0"]
[Round "05"]
[TimeControl "180+1"]
[Date "2022.01.18"]
[WhiteClock "0:00:08"]
[BlackClock "0:00:02"]

1. e4 {[%clk 0:03:00]}  c5 {[%clk 0:02:57]} 2. c4 {[%clk 0:02:59]}  Nc6 {[%clk 0:02:54]} 3. Nc3 {[%clk 0:03:00]}  g6 {[%clk 0:02:54]} 4. g3 {[%clk 0:03:00]}  Bg7 {[%clk 0:02:54]} 5. Bg2 {[%clk 0:03:01]}  d6 {[%clk 0:02:54]} 6. Nge2 {[%clk 0:03:02]}  Nf6 {[%clk 0:02:55]} 7. d3 {[%clk 0:03:02]}  h5 {[%clk 0:02:55]} 8. h3 {[%clk 0:03:02]}  Bd7 {[%clk 0:02:54]} 9. Be3 {[%clk 0:03:02]}  a6 {[%clk 0:02:55]} 10. d4 {[%clk 0:03:02]}  cxd4 {[%clk 0:02:53]} 11. Nxd4 {[%clk 0:03:03]}  Rc8 {[%clk 0:02:53]} 12. Rc1 {[%clk 0:03:03]}  Nxd4 {[%clk 0:02:45]} 13. Qxd4 {[%clk 0:03:00]}  b5 {[%clk 0:02:33]} 14. cxb5 {[%clk 0:02:53]}  axb5 {[%clk 0:02:32]} 15. O-O {[%clk 0:02:40]}  O-O {[%clk 0:02:31]} 16. Qb4 {[%clk 0:02:20]}  Rc4 {[%clk 0:02:13]} 17. Qb3 {[%clk 0:02:20]}  Qa5 {[%clk 0:02:14]} 18. Rfd1 {[%clk 0:01:49]}  Rfc8 {[%clk 0:01:59]} 19. Bf1 {[%clk 0:01:23]}  R4c7 {[%clk 0:01:58]} 20. a3 {[%clk 0:01:00]}  Rb8 {[%clk 0:01:36]} 21. Qb4 {[%clk 0:00:56]}  Qxb4 {[%clk 0:01:26]} 22. axb4 {[%clk 0:00:57]}  Be6 {[%clk 0:01:16]} 23. f3 {[%clk 0:00:39]}  Bb3 {[%clk 0:00:48]} 24. Re1 {[%clk 0:00:34]}  Nd7 {[%clk 0:00:42]} 25. Nxb5 {[%clk 0:00:32]}  Rxc1 {[%clk 0:00:25]} 26. Rxc1 {[%clk 0:00:33]}  Ne5 {[%clk 0:00:25]} 27. f4 {[%clk 0:00:27]}  Nd7 {[%clk 0:00:03]} 28. Rc7 {[%clk 0:00:28]}  Nf6 {[%clk 0:00:03]} 29. Rxe7 {[%clk 0:00:23]}  Bf8 {[%clk 0:00:04]} 30. Ra7 {[%clk 0:00:20]}  Nxe4 {[%clk 0:00:04]} 31. Kh2 {[%clk 0:00:20]}  d5 {[%clk 0:00:02]} 32. Nd4 {[%clk 0:00:10]}  Rxb4 {[%clk 0:00:02]} 33. Nc6 {[%clk 0:00:08]} 1-0


[Site "https://www.chess.com"]

[Event "Titled Tuesday Blitz January 18 2022"]
[White "Firat, Burak"]
[Black "Kanyamarala, Tarun"]
[WhiteFideId "6305881"]
[BlackFideId "45004714"]
[WhiteElo "2419"]
[BlackElo "2144"]
[Result "1-0"]
[Round "05"]
[TimeControl "180+1"]
[Date "2022.01.18"]
[WhiteClock "0:00:57"]
[BlackClock "0:00:01"]

1. Nf3 {[%clk 0:03:00]}  d5 {[%clk 0:02:59]} 2. c4 {[%clk 0:03:00]}  d4 {[%clk 0:02:59]} 3. e4 {[%clk 0:03:01]}  Nc6 {[%clk 0:02:57]} 4. d3 {[%clk 0:03:01]}  e5 {[%clk 0:02:58]} 5. a3 {[%clk 0:03:01]}  a5 {[%clk 0:02:56]} 6. g3 {[%clk 0:03:02]}  Bc5 {[%clk 0:02:49]} 7. Bg2 {[%clk 0:03:02]}  Nge7 {[%clk 0:02:46]} 8. Nh4 {[%clk 0:03:00]}  O-O {[%clk 0:02:44]} 9. O-O {[%clk 0:03:00]}  Rb8 {[%clk 0:02:25]} 10. Nd2 {[%clk 0:02:58]}  b5 {[%clk 0:02:09]} 11. cxb5 {[%clk 0:02:56]}  Rxb5 {[%clk 0:02:09]} 12. Qc2 {[%clk 0:02:39]}  Bd6 {[%clk 0:01:55]} 13. Nc4 {[%clk 0:02:32]}  Be6 {[%clk 0:01:48]} 14. Bd2 {[%clk 0:02:22]}  Qb8 {[%clk 0:01:35]} 15. Rab1 {[%clk 0:02:14]}  Qa7 {[%clk 0:01:14]} 16. Rfc1 {[%clk 0:01:55]}  Rfb8 {[%clk 0:01:11]} 17. b3 {[%clk 0:01:55]}  Bxc4 {[%clk 0:01:04]} 18. dxc4 {[%clk 0:01:52]}  d3 {[%clk 0:00:33]} 19. Qxd3 {[%clk 0:01:52]}  R5b7 {[%clk 0:00:33]} 20. Be3 {[%clk 0:01:41]}  Bc5 {[%clk 0:00:33]} 21. Nf5 {[%clk 0:01:37]}  Nd4 {[%clk 0:00:22]} 22. Bxd4 {[%clk 0:01:31]}  exd4 {[%clk 0:00:15]} 23. e5 {[%clk 0:01:19]}  Nxf5 {[%clk 0:00:14]} 24. Bxb7 {[%clk 0:01:19]}  Ne7 {[%clk 0:00:10]} 25. Be4 {[%clk 0:01:16]}  Bxa3 {[%clk 0:00:10]} 26. Re1 {[%clk 0:01:12]}  g6 {[%clk 0:00:08]} 27. f4 {[%clk 0:01:08]}  Bc5 {[%clk 0:00:06]} 28. f5 {[%clk 0:01:05]}  Rb4 {[%clk 0:00:03]} 29. f6 {[%clk 0:01:00]}  Nc8 {[%clk 0:00:01]} 30. Bd5 {[%clk 0:00:57]} 1-0


[Site "https://www.chess.com"]

[Event "Titled Tuesday Blitz January 18 2022"]
[White "Goltsev, Dmitry"]
[Black "Navalgund, Niranjan"]
[WhiteFideId "24176710"]
[BlackFideId "5030854"]
[WhiteElo "2273"]
[BlackElo "2290"]
[Result "1-0"]
[Round "05"]
[TimeControl "180+1"]
[Date "2022.01.18"]
[WhiteClock "0:00:21"]
[BlackClock "0:00:50"]

1. e4 {[%clk 0:02:13]}  e5 {[%clk 0:02:48]} 2. Nf3 {[%clk 0:02:12]}  Nc6 {[%clk 0:02:48]} 3. Bb5 {[%clk 0:02:12]}  g5 {[%clk 0:02:44]} 4. d4 {[%clk 0:02:09]}  g4 {[%clk 0:02:22]} 5. Nxe5 {[%clk 0:02:08]}  Nxe5 {[%clk 0:02:22]} 6. dxe5 {[%clk 0:02:09]}  c6 {[%clk 0:02:18]} 7. Bc4 {[%clk 0:02:06]}  Qa5+ {[%clk 0:02:17]} 8. Nc3 {[%clk 0:02:04]}  Qxe5 {[%clk 0:02:18]} 9. O-O {[%clk 0:02:00]}  Bd6 {[%clk 0:02:17]} 10. g3 {[%clk 0:01:57]}  Qc5 {[%clk 0:02:07]} 11. Qxg4 {[%clk 0:01:54]}  Qxc4 {[%clk 0:02:05]} 12. Qg7 {[%clk 0:01:54]}  f6 {[%clk 0:01:53]} 13. Qxh8 {[%clk 0:01:54]}  Qf7 {[%clk 0:01:49]} 14. f4 {[%clk 0:01:52]}  Bc5+ {[%clk 0:01:48]} 15. Kh1 {[%clk 0:01:49]}  d6 {[%clk 0:01:48]} 16. e5 {[%clk 0:01:48]}  Bh3 {[%clk 0:01:48]} 17. Re1 {[%clk 0:01:44]}  O-O-O {[%clk 0:01:47]} 18. Be3 {[%clk 0:01:26]}  Qh5 {[%clk 0:01:47]} 19. Rf1 {[%clk 0:00:59]}  Bxf1 {[%clk 0:01:29]} 20. Rxf1 {[%clk 0:01:00]}  Bxe3 {[%clk 0:01:29]} 21. exf6 {[%clk 0:00:58]}  Qh3 {[%clk 0:01:22]} 22. Rd1 {[%clk 0:00:49]}  Nh6 {[%clk 0:01:21]} 23. Qxh7 {[%clk 0:00:44]}  Qg4 {[%clk 0:01:13]} 24. Rf1 {[%clk 0:00:36]}  Nf5 {[%clk 0:01:12]} 25. f7 {[%clk 0:00:29]}  Nxg3+ {[%clk 0:01:01]} 26. hxg3 {[%clk 0:00:27]}  Qxg3 {[%clk 0:01:02]} 27. Ne4 {[%clk 0:00:26]}  Qg4 {[%clk 0:01:00]} 28. Nxd6+ {[%clk 0:00:24]}  Kb8 {[%clk 0:00:59]} 29. f8=Q {[%clk 0:00:23]}  Qh3+ {[%clk 0:00:50]} 30. Qxh3 {[%clk 0:00:21]}  Rxf8 {[%clk 0:00:50]} 31. Qd7 {[%clk 0:00:21]} 1-0


[Site "https://www.chess.com"]

[Event "Titled Tuesday Blitz January 18 2022"]
[White "Gontcharov, Vladislav"]
[Black "Panesar Vedant"]
[WhiteFideId "4123492"]
[BlackFideId "35033018"]
[WhiteElo "2503"]
[BlackElo "1971"]
[Result "0-1"]
[Round "05"]
[TimeControl "180+1"]
[Date "2022.01.18"]
[WhiteClock "0:00:01"]
[BlackClock "0:00:09"]

1. e4 {[%clk 0:03:00]}  c6 {[%clk 0:02:57]} 2. d4 {[%clk 0:02:58]}  d5 {[%clk 0:02:55]} 3. e5 {[%clk 0:02:58]}  Bf5 {[%clk 0:02:55]} 4. Nf3 {[%clk 0:02:57]}  e6 {[%clk 0:02:54]} 5. Be2 {[%clk 0:02:58]}  Ne7 {[%clk 0:02:53]} 6. O-O {[%clk 0:02:56]}  h6 {[%clk 0:02:51]} 7. c4 {[%clk 0:02:55]}  Nd7 {[%clk 0:02:46]} 8. Na3 {[%clk 0:02:53]}  Nc8 {[%clk 0:02:41]} 9. b3 {[%clk 0:02:51]}  Be7 {[%clk 0:02:41]} 10. Bb2 {[%clk 0:02:47]}  O-O {[%clk 0:02:41]} 11. Qd2 {[%clk 0:02:36]}  Bh7 {[%clk 0:02:19]} 12. Nc2 {[%clk 0:02:33]}  Ncb6 {[%clk 0:02:10]} 13. Ne3 {[%clk 0:02:28]}  a5 {[%clk 0:02:07]} 14. c5 {[%clk 0:02:26]}  Nc8 {[%clk 0:02:07]} 15. a3 {[%clk 0:02:16]}  f6 {[%clk 0:02:05]} 16. b4 {[%clk 0:02:10]}  Be4 {[%clk 0:01:50]} 17. exf6 {[%clk 0:01:59]}  Bxf6 {[%clk 0:01:48]} 18. Ne5 {[%clk 0:01:59]}  Nxe5 {[%clk 0:01:22]} 19. dxe5 {[%clk 0:01:58]}  Bg5 {[%clk 0:01:22]} 20. f3 {[%clk 0:01:54]}  Bg6 {[%clk 0:01:15]} 21. g3 {[%clk 0:01:53]}  Bxe3+ {[%clk 0:01:15]} 22. Qxe3 {[%clk 0:01:53]}  Ne7 {[%clk 0:01:15]} 23. g4 {[%clk 0:01:49]}  Qd7 {[%clk 0:01:08]} 24. Bc3 {[%clk 0:01:43]}  axb4 {[%clk 0:01:06]} 25. axb4 {[%clk 0:01:42]}  Bh7 {[%clk 0:01:01]} 26. Kg2 {[%clk 0:01:17]}  Ng6 {[%clk 0:00:56]} 27. f4 {[%clk 0:01:15]}  Ne7 {[%clk 0:00:55]} 28. Rxa8 {[%clk 0:01:07]}  Rxa8 {[%clk 0:00:51]} 29. Ra1 {[%clk 0:01:06]}  Be4+ {[%clk 0:00:48]} 30. Kg3 {[%clk 0:01:05]}  Qe8 {[%clk 0:00:44]} 31. Rxa8 {[%clk 0:00:53]}  Qxa8 {[%clk 0:00:43]} 32. h4 {[%clk 0:00:45]}  h5 {[%clk 0:00:39]} 33. f5 {[%clk 0:00:40]}  hxg4 {[%clk 0:00:35]} 34. Bxg4 {[%clk 0:00:39]}  Bxf5 {[%clk 0:00:31]} 35. Be2 {[%clk 0:00:37]}  Qa3 {[%clk 0:00:28]} 36. Bd2 {[%clk 0:00:36]}  Qb2 {[%clk 0:00:25]} 37. Bc3 {[%clk 0:00:30]}  Qc2 {[%clk 0:00:23]} 38. Qd2 {[%clk 0:00:28]}  Qe4 {[%clk 0:00:19]} 39. Bf3 {[%clk 0:00:28]}  Qd3 {[%clk 0:00:08]} 40. Qxd3 {[%clk 0:00:26]}  Bxd3 {[%clk 0:00:09]} 41. Bg4 {[%clk 0:00:25]}  Kf7 {[%clk 0:00:10]} 42. h5 {[%clk 0:00:24]}  Bf5 {[%clk 0:00:10]} 43. Be2 {[%clk 0:00:23]}  Nc8 {[%clk 0:00:10]} 44. Kf4 {[%clk 0:00:22]}  Ne7 {[%clk 0:00:11]} 45. Kg5 {[%clk 0:00:21]}  Be4 {[%clk 0:00:11]} 46. h6 {[%clk 0:00:18]}  gxh6+ {[%clk 0:00:11]} 47. Kxh6 {[%clk 0:00:19]}  d4 {[%clk 0:00:11]} 48. Bd2 {[%clk 0:00:17]}  d3 {[%clk 0:00:11]} 49. Bh5+ {[%clk 0:00:16]}  Kf8 {[%clk 0:00:11]} 50. Kg5 {[%clk 0:00:15]}  Nd5 {[%clk 0:00:10]} 51. Bg4 {[%clk 0:00:14]}  Ke7 {[%clk 0:00:11]} 52. Bh3 {[%clk 0:00:13]}  Bf3 {[%clk 0:00:10]} 53. Kh4 {[%clk 0:00:11]}  Be2 {[%clk 0:00:10]} 54. Kg3 {[%clk 0:00:11]}  Kd7 {[%clk 0:00:11]} 55. Kf2 {[%clk 0:00:11]}  Nc7 {[%clk 0:00:09]} 56. Ke3 {[%clk 0:00:10]}  Nd5+ {[%clk 0:00:09]} 57. Kd4 {[%clk 0:00:10]}  Nc7 {[%clk 0:00:09]} 58. Ke4 {[%clk 0:00:10]}  Na6 {[%clk 0:00:09]} 59. Kd4 {[%clk 0:00:10]}  Ke7 {[%clk 0:00:09]} 60. Ke4 {[%clk 0:00:09]}  Kf7 {[%clk 0:00:09]} 61. Kd4 {[%clk 0:00:09]}  Nc7 {[%clk 0:00:10]} 62. Ke4 {[%clk 0:00:09]}  Kg6 {[%clk 0:00:10]} 63. Ke3 {[%clk 0:00:05]}  Kh5 {[%clk 0:00:10]} 64. b5 {[%clk 0:00:04]}  cxb5 {[%clk 0:00:09]} 65. Ba5 {[%clk 0:00:04]}  Nd5+ {[%clk 0:00:09]} 66. Ke4 {[%clk 0:00:02]}  Bg4 {[%clk 0:00:09]} 67. Bf1 {[%clk 0:00:01]}  Bf5+ {[%clk 0:00:09]} 0-1


[Site "https://www.chess.com"]

[Event "Titled Tuesday Blitz January 18 2022"]
[White "Halkias, Stelios"]
[Black "Brunner, Nicolas"]
[WhiteFideId "4201809"]
[BlackFideId "620246"]
[WhiteElo "2453"]
[BlackElo "2372"]
[Result "1/2-1/2"]
[Round "05"]
[TimeControl "180+1"]
[Date "2022.01.18"]
[WhiteClock "0:00:17"]
[BlackClock "0:00:11"]

1. e4 {[%clk 0:02:59]}  e5 {[%clk 0:03:00]} 2. Nf3 {[%clk 0:02:58]}  Nc6 {[%clk 0:03:00]} 3. Bc4 {[%clk 0:02:58]}  Nf6 {[%clk 0:02:59]} 4. d3 {[%clk 0:02:58]}  Be7 {[%clk 0:02:59]} 5. O-O {[%clk 0:02:57]}  O-O {[%clk 0:02:57]} 6. a4 {[%clk 0:02:56]}  d5 {[%clk 0:02:55]} 7. exd5 {[%clk 0:02:56]}  Nxd5 {[%clk 0:02:55]} 8. h3 {[%clk 0:02:55]}  Kh8 {[%clk 0:02:55]} 9. a5 {[%clk 0:02:54]}  a6 {[%clk 0:02:53]} 10. Re1 {[%clk 0:02:52]}  f6 {[%clk 0:02:53]} 11. Nbd2 {[%clk 0:02:44]}  Bb4 {[%clk 0:02:43]} 12. c3 {[%clk 0:02:30]}  Bxa5 {[%clk 0:02:42]} 13. Ne4 {[%clk 0:02:30]}  Bb6 {[%clk 0:02:39]} 14. Nh4 {[%clk 0:02:28]}  Nce7 {[%clk 0:02:21]} 15. d4 {[%clk 0:02:12]}  exd4 {[%clk 0:02:10]} 16. cxd4 {[%clk 0:02:11]}  Nf5 {[%clk 0:02:02]} 17. Nxf5 {[%clk 0:01:29]}  Bxf5 {[%clk 0:02:01]} 18. Qh5 {[%clk 0:01:29]}  g6 {[%clk 0:01:49]} 19. Qf3 {[%clk 0:01:25]}  Bxd4 {[%clk 0:01:38]} 20. Bh6 {[%clk 0:01:23]}  Re8 {[%clk 0:01:31]} 21. Rad1 {[%clk 0:01:17]}  c5 {[%clk 0:01:29]} 22. Nxc5 {[%clk 0:00:52]}  Rxe1+ {[%clk 0:01:25]} 23. Rxe1 {[%clk 0:00:52]}  Bxc5 {[%clk 0:01:25]} 24. Bxd5 {[%clk 0:00:51]}  Qa5 {[%clk 0:01:08]} 25. Rc1 {[%clk 0:00:38]}  Bd4 {[%clk 0:00:31]} 26. g4 {[%clk 0:00:25]}  Bd7 {[%clk 0:00:25]} 27. Qe4 {[%clk 0:00:19]}  Be5 {[%clk 0:00:20]} 28. g5 {[%clk 0:00:15]}  Bf5 {[%clk 0:00:16]} 29. Qc4 {[%clk 0:00:16]}  Qd2 {[%clk 0:00:12]} 30. gxf6 {[%clk 0:00:13]}  Qxh6 {[%clk 0:00:12]} 31. f7 {[%clk 0:00:13]}  Qf8 {[%clk 0:00:10]} 32. Re1 {[%clk 0:00:10]}  Bg7 {[%clk 0:00:10]} 33. Bxb7 {[%clk 0:00:09]}  Rd8 {[%clk 0:00:09]} 34. Bc6 {[%clk 0:00:09]}  Bd7 {[%clk 0:00:07]} 35. Bxd7 {[%clk 0:00:08]}  Rxd7 {[%clk 0:00:08]} 36. Re8 {[%clk 0:00:09]}  Rxf7 {[%clk 0:00:08]} 37. Rxf8+ {[%clk 0:00:09]}  Rxf8 {[%clk 0:00:08]} 38. Qxa6 {[%clk 0:00:09]}  Bd4 {[%clk 0:00:07]} 39. Qd6 {[%clk 0:00:09]}  Bxf2+ {[%clk 0:00:07]} 40. Kg2 {[%clk 0:00:09]}  Rf5 {[%clk 0:00:07]} 41. Qd8+ {[%clk 0:00:09]}  Kg7 {[%clk 0:00:07]} 42. Qd7+ {[%clk 0:00:10]}  Kh6 {[%clk 0:00:07]} 43. Qxf5 {[%clk 0:00:09]}  gxf5 {[%clk 0:00:06]} 44. Kxf2 {[%clk 0:00:10]}  Kg5 {[%clk 0:00:07]} 45. b4 {[%clk 0:00:10]}  Kf6 {[%clk 0:00:07]} 46. Ke3 {[%clk 0:00:11]}  Ke5 {[%clk 0:00:08]} 47. b5 {[%clk 0:00:11]}  Kd5 {[%clk 0:00:06]} 48. Kf4 {[%clk 0:00:12]}  Kc5 {[%clk 0:00:07]} 49. Kxf5 {[%clk 0:00:13]}  Kxb5 {[%clk 0:00:07]} 50. Kf6 {[%clk 0:00:14]}  Kb6 {[%clk 0:00:08]} 51. h4 {[%clk 0:00:14]}  Kc7 {[%clk 0:00:08]} 52. h5 {[%clk 0:00:15]}  Kd7 {[%clk 0:00:09]} 53. Kg7 {[%clk 0:00:14]}  Ke7 {[%clk 0:00:09]} 54. h6 {[%clk 0:00:15]}  Ke8 {[%clk 0:00:09]} 55. Kg8 {[%clk 0:00:15]}  Ke7 {[%clk 0:00:10]} 56. Kg7 {[%clk 0:00:15]}  Ke8 {[%clk 0:00:10]} 57. Kxh7 {[%clk 0:00:16]}  Kf7 {[%clk 0:00:11]} 58. Kh8 {[%clk 0:00:16]}  Kf8 {[%clk 0:00:11]} 59. h7 {[%clk 0:00:17]}  Kf7 {[%clk 0:00:11]} 1/2-1/2


[Site "https://www.chess.com"]